bitfinex-derivatives/quotes_ETHF0:USTF0_20250105
["timestamp","ask_amount","ask_price","bid_price","bid_amount"]
[1736055530380,2.58748393,3636.5,3636.4,0.98899128]
[1736055531587,2.58748393,3636.5,3636.4,1.26405128]
[1736055532078,0.4398,3636.5,3636.4,1.26405128]
[1736055535990,0.4398,3636.5,3636.4,0.98899128]
[1736055537287,0.4398,3636.5,3636.4,1.26405128]
[1736055538586,0.4398,3636.5,3636.4,0.98899128]
[1736055541495,0.4396,3636.7,3636.4,0.98899128]
[1736055541782,0.4396,3636.7,3636.6,0.98899128]
[1736055543590,0.4396,3636.7,3636.6,1.26404128]
[1736055543789,0.4396,3636.7,3636.6,0.98899128]
[1736055548992,0.4396,3636.7,3636.6,1.26404128]
[1736055550497,0.4288,3636.8,3636.6,1.67604128]
[1736055550696,0.4288,3636.8,3636.7,0.4198]
[1736055551189,2.14768393,3637.0,3636.8,0.27503]
[1736055551394,2.14768393,3637.0,3636.9,0.98899128]
[1736055553096,0.826,3637.1,3636.9,0.98899128]
[1736055553296,0.27502,3637.0,3636.7,1.85109128]
[1736055554087,1.10101,3637.1,3636.7,1.85109128]
[1736055554801,3.24869393,3637.1,3636.7,1.85109128]
[1736055555897,3.24869393,3637.1,3636.7,1.40879128]
[1736055556694,0.826,3637.1,3636.7,1.40879128]
[1736055556895,0.826,3637.1,3636.9,0.98899128]
[1736055557701,0.826,3637.1,3636.9,1.26401128]
[1736055559299,0.4086,3637.1,3636.9,1.26401128]
[1736055561294,0.4086,3637.1,3636.9,0.98899128]
[1736055561501,0.4086,3637.1,3637.0,0.71152]
[1736055565706,0.4214,3637.2,3637.1,0.27501]
[1736055565895,0.4214,3637.2,3637.1,1.26400128]
[1736055566909,2.14768393,3637.4,3637.3,0.27499]
[1736055567099,2.14768393,3637.4,3637.3,1.26398128]
[1736055567606,0.4173,3637.5,3637.3,1.26398128]
[1736055569406,0.4173,3637.5,3637.3,0.98899128]
[1736055569600,0.69228,3637.5,3637.3,0.98899128]
[1736055570202,0.4173,3637.5,3637.3,0.98899128]
[1736055575303,0.4173,3637.5,3637.3,1.26398128]
[1736055575908,0.4173,3637.5,3637.3,4.19679128]
[1736055576105,0.4173,3637.5,3637.4,0.27499]
[1736055576800,0.4173,3637.5,3637.4,0.70299]
[1736055578003,0.4447,3637.7,3637.6,0.27497]
[1736055578207,0.4447,3637.7,3637.6,1.26396128]
[1736055578208,0.8852,3637.7,3637.6,1.26396128]
[1736055585616,0.8852,3637.7,3637.6,4.47176128]
[1736055585810,0.8852,3637.7,3637.6,4.19679128]
[1736055587713,0.8852,3637.7,3637.6,4.47176128]
[1736055592221,0.4405,3637.7,3637.6,4.47176128]
[1736055604529,0.4405,3637.7,3637.6,8.79498274]
[1736055604730,0.4405,3637.7,3637.6,5.58718274]
[1736055608833,0.4405,3637.7,3637.6,5.25480579]
[1736055611030,2.14768393,3637.8,3637.7,0.27496]
[1736055613134,2.14768393,3637.8,3637.7,10.75275993]
[1736055614527,2.14768393,3637.8,3637.7,10.47779993]
[1736055615232,2.42264393,3637.8,3637.7,10.47779993]
[1736055615436,7.42264393,3637.8,3637.7,10.47779993]
[1736055616026,7.42264393,3637.8,3637.4,4.32735134]
[1736055616027,9.7216068,3637.8,3637.4,4.32735134]
[1736055616226,4.19679128,3637.5,3637.3,4.87410676]
[1736055616423,2.31898128,3637.4,3637.3,3.01991676]
[1736055616630,1.32999,3637.4,3637.3,3.01991676]
[1736055616830,6.32999,3637.4,3637.3,3.01991676]
[1736055617933,0.275,3637.2,3637.1,8.64790376]
[1736055618140,0.275,3637.2,3636.3,0.4112]
[1736055618141,0.27505,3636.6,3636.3,0.4112]
[1736055618438,1.33005,3636.6,3636.3,0.4112]
[1736055619537,2.14657964,3636.5,3636.3,0.4112]
[1736055621336,2.14657964,3636.5,3636.4,0.98899128]
[1736055622126,2.42162964,3636.5,3636.4,0.98899128]
[1736055622330,0.27505,3636.5,3636.4,0.98899128]
[1736055627335,0.27505,3636.5,3636.3,0.4112]
[1736055629239,1.055,3636.6,3636.3,0.4112]
[1736055629240,1.33005,3636.6,3636.3,0.4112]
[1736055629539,1.33005,3636.6,3636.4,0.98899128]
[1736055629942,1.33005,3636.6,3636.5,0.4348]
[1736055630641,1.055,3636.6,3636.5,0.4348]
[1736055631539,1.33005,3636.6,3636.5,0.4348]
[1736055631733,0.27505,3636.6,3636.5,0.4348]
[1736055631933,1.33004,3636.7,3636.5,0.4348]
[1736055632737,0.27505,3636.6,3636.5,0.4348]
[1736055634137,0.27506,3636.4,3636.3,0.4112]
[1736055643242,1.26405128,3636.4,3636.3,0.4112]
[1736055643640,0.27508,3636.2,3636.1,0.4081]
[1736055643839,4.47187128,3636.2,3636.1,0.4081]
[1736055645744,1.26407128,3636.2,3636.1,0.4081]
[1736055645944,4.47187128,3636.2,3636.1,0.4081]
[1736055651248,0.27508,3636.2,3636.1,0.4081]
[1736055654050,1.26407128,3636.2,3636.1,0.4081]
[1736055654952,0.27508,3636.2,3636.1,0.4081]
[1736055657353,1.33308,3636.2,3636.1,0.4081]
[1736055660355,2.32207128,3636.2,3636.1,0.4081]
[1736055660557,4.46865092,3636.2,3636.1,0.4081]
[1736055662461,2.73484691,3636.2,3636.1,0.4081]
[1736055663154,1.74585563,3636.2,3636.1,0.4081]
[1736055665251,4.55749789,3636.2,3636.1,0.4081]
[1736055666955,5.54648917,3636.2,3636.1,0.4081]
[1736055667850,2.73483976,3636.2,3636.1,0.4081]
[1736055669054,2.32207128,3636.2,3636.1,0.4081]
[1736055669559,1.33308,3636.2,3636.1,0.4081]
[1736055670150,1.058,3636.2,3636.1,0.4081]
[1736055670759,4.6959297,3636.2,3636.1,0.4081]
[1736055671759,3.6379297,3636.2,3636.1,0.4081]
[1736055672460,2.15030657,3636.2,3636.1,0.4081]
[1736055672848,2.15030657,3636.2,3636.1,1.39709128]
[1736055673856,2.42537657,3636.3,3636.1,1.39709128]
[1736055674261,2.42537657,3636.3,3636.2,0.4351]
[1736055674963,2.15030657,3636.3,3636.2,0.4351]
[1736055675264,2.15030657,3636.3,3636.2,0.71018]
[1736055675462,3.22516122,3636.4,3636.3,0.27507]
[1736055675758,3.22516122,3636.4,3636.3,1.67616128]
[1736055676351,3.22516122,3636.4,3636.3,1.40109128]
[1736055676963,2.15064721,3636.5,3636.3,1.40109128]
[1736055677354,2.15064721,3636.5,3636.3,1.67616128]
[1736055678056,2.15064721,3636.5,3636.3,1.40109128]
[1736055678260,1.47464721,3636.5,3636.4,0.27506]
[1736055678456,0.79864721,3636.5,3636.4,0.27506]
[1736055678764,0.12264721,3636.5,3636.4,0.27506]
[1736055679561,3.22516122,3636.9,3636.6,0.27504]
[1736055679760,3.22516122,3636.9,3636.8,0.98899128]
[1736055680261,3.22516122,3636.9,3636.8,1.26402128]
[1736055681152,3.22516122,3637.1,3636.9,0.27502]
[1736055681356,3.22516122,3637.1,3637.0,0.98899128]
[1736055681856,3.22516122,3637.1,3637.0,1.85069128]
[1736055682054,3.22516122,3637.1,3637.0,2.12571128]
[1736055682765,3.22516122,3637.1,3637.0,1.85069128]
[1736055682967,1.77199,3637.3,3637.0,1.85069128]
[1736055685967,1.772,3637.3,3637.0,1.85069128]
[1736055692972,1.497,3637.3,3637.0,2.12570128]
[1736055695775,1.497,3637.3,3637.1,3.2078]
[1736055695964,1.497,3637.3,3637.2,0.4403]
[1736055698464,3.22516122,3637.8,3637.2,1.42929128]
[1736055698667,0.4422,3637.7,3637.6,0.27496]
[1736055700476,0.4422,3637.7,3637.6,1.26395128]
[1736055701078,0.4422,3637.7,3637.6,2.11045128]
[1736055705679,0.4422,3637.7,3637.6,1.83549128]
[1736055706186,0.4422,3637.7,3637.6,2.11046128]
[1736055706778,0.4422,3637.7,3637.6,1.83549128]
[1736055707174,0.4422,3637.7,3637.6,2.11046128]
[1736055712287,1.055,3638.0,3637.6,1.83549128]
[1736055712487,1.4891,3638.0,3637.8,0.98899128]
[1736055714585,1.76404,3638.0,3637.8,0.98899128]
[1736055716288,1.4891,3638.0,3637.8,0.98899128]
[1736055716492,0.27495,3637.9,3637.8,0.98899128]
[1736055719290,1.4891,3638.0,3637.8,0.98899128]
[1736055719595,1.76404,3638.0,3637.8,0.98899128]
[1736055720485,1.4891,3638.0,3637.7,0.4252]
[1736055720692,0.27496,3637.8,3637.7,0.4252]
[1736055725692,0.27495,3637.9,3637.7,0.4252]
[1736055726600,3.50011122,3637.9,3637.7,0.4252]
[1736055729290,3.22516122,3637.8,3637.7,0.4252]
[1736055729696,3.50012122,3637.8,3637.7,0.4252]
[1736055730699,3.63773419,3637.8,3637.7,0.4252]
[1736055733605,3.22516122,3637.8,3637.7,0.4252]
[1736055736707,3.63773419,3637.9,3637.7,0.4252]
[1736055737107,3.91268419,3637.9,3637.7,0.4252]
[1736055738007,0.41257297,3637.8,3637.7,0.4252]
[1736055739707,4.56810929,3637.9,3637.7,0.4252]
[1736055741209,0.41257297,3637.8,3637.7,0.4252]
[1736055743613,4.70573226,3637.8,3637.7,0.4252]
[1736055743808,4.98069226,3637.8,3637.7,0.4252]
[1736055744511,5.96968354,3637.8,3637.7,0.4252]
[1736055745110,5.69472354,3637.8,3637.6,4.32472587]
[1736055745306,0.71276,3637.7,3637.6,4.32472587]
[1736055745807,0.27497,3637.6,3637.5,4.32472587]
[1736055746007,1.71436128,3637.6,3637.5,4.32472587]
[1736055747014,6.22823579,3637.6,3637.3,0.447]
[1736055747206,0.27499,3637.4,3637.3,0.447]
[1736055748111,5.98516687,3637.4,3637.3,0.447]
[1736055752316,1.67655425,3637.4,3637.3,0.447]
[1736055754712,0.275,3637.2,3637.1,0.4284]
[1736055754915,2.31899128,3637.2,3637.1,0.4284]
[1736055756518,2.73156425,3637.2,3637.1,0.4284]
[1736055757016,3.14136425,3637.2,3637.1,0.4284]
[1736055757516,6.36901107,3637.2,3637.1,0.4284]
[1736055760920,2.72879128,3637.2,3637.1,0.4284]
[1736055761119,1.4648,3637.2,3637.1,1.41739128]
[1736055761320,1.055,3637.2,3637.1,1.41739128]
[1736055763125,1.33,3637.2,3637.1,0.4284]
[1736055764724,2.31899128,3637.2,3637.1,0.4284]
[1736055766426,2.76239128,3637.2,3637.1,0.4284]
[1736055767325,1.7734,3637.2,3637.1,0.4284]
[1736055767522,1.33,3637.2,3637.1,0.4284]
[1736055768716,1.055,3637.2,3637.1,0.4284]
[1736055770327,1.33,3637.2,3637.1,0.4284]
[1736055771430,1.7422,3637.2,3637.1,0.4284]
[1736055775535,4.96984682,3637.2,3637.1,0.4284]
[1736055777043,0.27501,3637.1,3637.0,0.4148]
[1736055777247,1.26400128,3637.1,3637.0,0.4148]
[1736055777830,0.27503,3636.9,3636.6,7.53252587]
[1736055778037,0.27503,3636.9,3636.7,1.2689]
[1736055778332,0.4252,3636.8,3636.7,1.2689]
[1736055780833,3.50248597,3637.0,3636.7,1.2689]
[1736055781436,3.50248597,3637.0,3636.7,2.25789128]
[1736055782036,3.22746597,3637.0,3636.7,2.53293128]
[1736055783143,3.50248597,3637.0,3636.7,2.25789128]
[1736055784245,3.22746597,3637.0,3636.7,2.53292128]
[1736055784443,3.50248597,3637.0,3636.7,2.53292128]
[1736055785246,3.22746597,3637.0,3636.9,0.27502]
[1736055785441,3.22746597,3637.0,3636.9,1.26401128]
[1736055787335,6.43526597,3637.3,3636.9,4.84372312]
[1736055787542,6.43526597,3637.3,3637.1,0.27501]
[1736055787745,6.43526597,3637.3,3637.2,0.8308]
[1736055787939,6.43526597,3637.3,3637.2,1.2476]
[1736055788136,3.22746597,3637.3,3637.2,1.2476]
[1736055788835,0.41262857,3637.3,3637.2,1.2476]
[1736055792544,4.72124119,3637.3,3637.2,1.2476]
[1736055794953,4.99623119,3637.3,3637.2,1.2476]
[1736055795355,0.68761857,3637.3,3637.2,1.2476]
[1736055796856,4.99623119,3637.3,3637.2,1.2476]
[1736055800954,5.98522247,3637.3,3637.2,1.2476]
[1736055801156,5.98522247,3637.3,3637.2,0.8308]
[1736055801856,5.98522247,3637.3,3637.2,0.4083]
[1736055802555,1.67660985,3637.3,3637.2,0.4083]
[1736055805654,6.04418339,3637.3,3637.2,0.4083]
[1736055807258,1.67660985,3637.3,3637.2,0.4083]
[1736055808764,1.26398128,3637.3,3637.2,0.4083]
[1736055809869,1.67660985,3637.3,3637.2,0.4083]
[1736055814770,0.68761857,3637.3,3637.2,0.4083]
[1736055821881,4.99784008,3637.3,3637.2,0.4083]
[1736055822980,0.68761857,3637.3,3637.2,0.4083]
[1736055823380,1.74361857,3637.3,3637.2,0.4083]
[1736055824282,1.33099,3637.3,3637.2,0.4083]
[1736055826074,1.74361857,3637.3,3637.2,0.4083]
[1736055826275,2.73260985,3637.3,3637.2,0.4083]
[1736055827883,7.1020621,3637.3,3637.2,0.4083]
[1736055829886,7.1020621,3637.3,3637.2,0.8509]
[1736055831082,5.83808082,3637.3,3637.2,1.1259]
[1736055831291,5.83808082,3637.3,3637.2,0.8509]
[1736055832181,1.46862857,3637.3,3637.2,5.17686292]
[1736055833784,1.056,3637.3,3637.2,0.8509]
[1736055835194,1.46862857,3637.3,3637.2,0.8509]
[1736055836286,1.46862857,3637.3,3637.2,5.17686292]
[1736055837287,1.46862857,3637.3,3637.2,0.8509]
[1736055839287,1.74361857,3637.3,3637.2,0.8509]
[1736055840187,6.11444345,3637.3,3637.2,0.8509]
[1736055840397,5.83945345,3637.3,3637.2,0.8509]
[1736055840590,6.11444345,3637.3,3637.2,0.8509]
[1736055842199,6.11444345,3637.3,3637.2,5.17686292]
[1736055842591,4.78345345,3637.3,3637.2,5.17686292]
[1736055843295,0.41262857,3637.3,3637.2,5.17686292]
[1736055844696,0.68761857,3637.3,3637.2,5.17686292]
[1736055845093,0.27499,3637.3,3637.2,5.17686292]
[1736055845399,5.38576577,3637.4,3637.2,5.17686292]
[1736055845598,6.71675577,3637.4,3637.2,5.17686292]
[1736055846406,4.31250536,3637.3,3637.2,5.17686292]
[1736055847802,0.41262857,3637.3,3637.2,5.17686292]
[1736055849507,1.056,3637.4,3637.2,5.17686292]
[1736055849802,1.33099,3637.4,3637.2,5.17686292]
[1736055850195,1.056,3637.4,3637.2,5.17686292]
[1736055850806,1.33099,3637.4,3637.2,5.17686292]
[1736055851006,0.41262857,3637.3,3637.2,7.33896632]
[1736055852507,0.41262857,3637.3,3637.2,11.19805073]
[1736055853807,0.41262857,3637.3,3637.2,4.70998441]
[1736055854705,0.68761857,3637.3,3637.2,4.70998441]
[1736055855008,0.41262857,3637.3,3637.2,4.70998441]
[1736055855409,0.68761857,3637.3,3637.2,4.70998441]
[1736055859408,0.68761857,3637.3,3637.2,4.26738441]
[1736055859608,0.68761857,3637.3,3637.2,4.73765235]
[1736055860511,0.68761857,3637.3,3637.2,4.32935235]
[1736055861108,0.68761857,3637.3,3637.0,4.32935235]
[1736055861109,0.27501,3637.1,3637.0,4.32935235]
[1736055861815,0.71521,3637.1,3637.0,4.32935235]
[1736055862916,0.27502,3637.0,3636.9,5.19875235]
[1736055864009,3.92048319,3637.0,3636.9,4.72779486]
[1736055864821,3.64546319,3637.0,3636.9,4.72779486]
[1736055867107,3.92048319,3637.0,3636.9,4.72779486]
[1736055867307,3.64546319,3637.0,3636.9,4.72779486]
[1736055867512,3.64546319,3637.0,3636.9,5.00281486]
[1736055868411,6.09015577,3637.4,3636.9,11.21586118]
[1736055868412,3.23283462,3637.1,3636.9,11.21586118]
[1736055868614,3.23283462,3637.1,3637.0,1.26401128]
[1736055869815,3.64546319,3637.1,3637.0,5.12240614]
[1736055871313,4.28983462,3637.2,3637.0,11.61047246]
[1736055872415,4.28983462,3637.2,3637.1,10.34646118]
[1736055873008,4.28983462,3637.2,3637.1,10.62147118]
[1736055873009,3.23283462,3637.2,3637.1,10.62147118]
[1736055873709,3.23283462,3637.2,3637.1,4.13340486]
[1736055875215,3.64544569,3637.3,3637.1,10.62147118]
[1736055876015,3.64544569,3637.3,3637.2,0.4182]
[1736055876718,3.64544569,3637.3,3637.2,4.74666165]
[1736055877618,3.64544569,3637.3,3637.2,5.02166165]
[1736055878918,4.63443697,3637.3,3637.2,4.74666165]
[1736055879115,4.63443697,3637.3,3637.2,4.27559881]
[1736055879316,4.63443697,3637.3,3637.2,3.85739881]
[1736055880815,5.71211978,3637.3,3637.2,3.85739881]
[1736055881019,5.71211978,3637.3,3637.1,4.32863658]
[1736055881719,5.98711978,3637.3,3637.1,4.32863658]
[1736055882520,5.57450871,3637.3,3637.1,4.32863658]
[1736055882922,0.275,3637.2,3637.1,4.32863658]
[1736055883126,5.57449871,3637.3,3637.1,4.32863658]
[1736055883323,5.29950871,3637.3,3637.1,4.32863658]
[1736055883526,0.275,3637.2,3637.1,4.32863658]
[1736055884024,0.68761107,3637.2,3637.1,4.32863658]
[1736055885323,10.16472074,3637.2,3636.8,0.4451]
[1736055885618,0.27502,3637.0,3636.8,0.4451]
[1736055886023,0.4227,3636.9,3636.8,0.4451]
[1736055886422,0.83531107,3636.9,3636.8,0.4451]
[1736055887120,0.41261107,3636.9,3636.8,0.4451]
[1736055887426,0.41261107,3636.9,3636.8,1.70912128]
[1736055889022,0.41261107,3636.9,3636.8,5.56564406]
[1736055889023,2.15359235,3636.9,3636.8,5.56564406]
[1736055892032,2.15359235,3637.2,3637.0,0.27501]
[1736055892223,2.15359235,3637.2,3637.1,0.4296]
[1736055893533,4.28638853,3637.3,3637.1,0.4296]
[1736055893826,4.28638853,3637.3,3637.2,0.4139]
[1736055895120,4.69900702,3637.3,3637.2,0.4139]
[1736055896331,1.46861849,3637.3,3637.2,0.4139]
[1736055897129,1.46861849,3637.3,3637.2,0.6889]
[1736055897831,1.056,3637.3,3637.2,5.01556413]
[1736055899026,4.57202248,3637.5,3637.2,5.01556413]
[1736055899220,4.57202248,3637.5,3637.3,0.4369]
[1736055899421,4.57202248,3637.5,3637.4,0.27499]
[1736055899722,0.26447406,3637.5,3637.3,0.71189]
[1736055902028,3.64303156,3637.4,3637.3,0.4369]
[1736055902623,4.63202284,3637.4,3637.3,0.4369]
[1736055903329,1.4015921,3637.4,3637.3,0.4369]
[1736055904538,0.98899128,3637.4,3637.3,0.4369]
[1736055905033,4.84700248,3637.5,3637.3,0.4369]
[1736055905330,4.57202248,3637.5,3637.3,0.4369]
[1736055905532,0.27499,3637.4,3637.3,0.4369]
[1736055905826,4.84700248,3637.5,3637.3,0.4369]
[1736055906223,0.41260082,3637.4,3637.3,0.4369]
[1736055907735,1.6765821,3637.4,3637.3,0.4369]
[1736055909834,1.4015921,3637.4,3636.9,4.32666413]
[1736055910138,1.26401128,3637.0,3636.9,4.32666413]
[1736055910532,2.32401128,3637.0,3636.9,4.32666413]
[1736055910730,2.04899128,3637.0,3636.7,4.74116413]
[1736055911134,0.27503,3636.8,3636.7,4.74116413]
[1736055911638,0.27503,3636.9,3636.7,4.74116413]
[1736055912438,3.64299621,3636.8,3636.7,0.4145]
[1736055912935,3.91802621,3636.8,3636.7,0.4145]
[1736055914136,4.90701749,3636.8,3636.7,0.4145]
[1736055915042,0.27504,3636.7,3636.5,7.95336413]
[1736055915234,0.98899128,3636.6,3636.5,7.95336413]
[1736055915428,1.26404128,3636.6,3636.5,7.53446413]
[1736055916634,1.26404128,3636.6,3636.5,3.2078]
[1736055916635,4.49443667,3636.6,3636.5,3.2078]
[1736055917846,1.26404128,3636.6,3636.5,3.2078]
[1736055918034,1.26404128,3636.6,3636.3,8.39806413]
[1736055918942,3.41579117,3636.6,3636.3,4.0714]
[1736055920939,3.14074117,3636.6,3636.3,4.0714]
[1736055921140,3.14074117,3636.6,3636.3,4.34647]
[1736055921440,2.15174989,3636.6,3636.5,0.98899128]
[1736055921644,2.15174989,3636.6,3636.5,1.26404128]
[1736055922247,0.80014989,3636.6,3636.5,1.26404128]
[1736055922448,3.23039539,3636.7,3636.6,0.27505]
[1736055922639,3.23039539,3637.2,3636.5,4.84113759]
[1736055922944,3.23039539,3637.2,3637.1,0.27501]
[1736055923343,3.23039539,3637.2,3637.1,0.71181]
[1736055924347,3.49486945,3637.5,3637.1,0.4368]
[1736055924552,3.49486945,3637.5,3637.4,1.26398128]
[1736055925646,0.26447406,3637.5,3637.4,1.26398128]
[1736055926249,0.26447406,3637.5,3637.4,0.27499]
[1736055930649,0.26447406,3637.5,3637.3,0.8335]
[1736055930650,1.25346534,3637.5,3637.3,0.8335]
[1736055930951,1.25346534,3637.5,3637.3,1.10849]
[1736055932653,1.25346534,3637.5,3637.4,0.27499]
[1736055935156,0.26447406,3637.5,3637.4,0.27499]
[1736055937552,5.89874175,3637.8,3637.7,0.27496]
[1736055938753,6.88773303,3637.8,3637.7,0.27496]
[1736055939061,6.88773303,3637.8,3637.5,0.4159]
[1736055939258,3.93229764,3637.8,3637.5,0.69088]
[1736055939561,3.65733764,3637.8,3637.5,0.69088]
[1736055939760,3.65733764,3637.8,3637.5,0.4159]
[1736055939964,3.65733764,3637.8,3637.6,0.27497]
[1736055941362,3.65733764,3637.8,3637.5,0.69088]
[1736055942255,3.65733764,3637.8,3637.6,0.27497]
[1736055942455,3.65733764,3637.8,3637.5,0.69088]
[1736055944858,3.65733764,3637.8,3637.6,0.27497]
[1736055948760,0.98899128,3637.8,3637.6,0.27497]
[1736055949962,0.98899128,3637.8,3637.5,0.4159]
[1736055950168,0.98899128,3637.8,3637.6,0.27497]
[1736055950761,0.98899128,3637.8,3637.5,0.4159]
[1736055950966,0.98899128,3637.8,3637.7,0.27496]
[1736055954169,0.98899128,3637.8,3637.5,0.4159]
[1736055954369,0.98899128,3637.8,3637.6,0.27497]
[1736055955868,0.98899128,3637.8,3637.7,0.27496]
[1736055957671,0.98899128,3637.8,3637.6,0.27497]
[1736055958178,0.98899128,3637.8,3637.7,0.27496]
[1736055961579,0.98899128,3637.8,3637.5,0.4159]
[1736055961777,0.98899128,3637.6,3637.5,0.27498]
[1736055962070,0.98899128,3637.6,3637.3,1.14119]
[1736055962271,0.98899128,3637.4,3637.2,4.32210652]
[1736055962471,1.06,3637.3,3637.2,4.32210652]
[1736055963474,1.06,3637.3,3637.2,4.59710652]
[1736055964280,1.06,3637.3,3637.2,0.275]
[1736055968577,1.06,3637.3,3637.2,0.6883]
[1736055969475,1.06,3637.3,3637.2,5.01040652]
[1736055973879,4.29039539,3637.3,3637.2,0.6883]
[1736055974274,4.29039539,3637.3,3637.2,0.4133]
[1736055974582,4.29039539,3637.3,3637.1,4.32210652]
[1736055974781,0.98899128,3637.2,3637.1,4.32210652]
[1736055976389,0.98899128,3637.2,3636.9,0.72352]
[1736055976390,5.70958541,3637.2,3636.9,0.72352]
[1736055976682,0.98899128,3637.0,3636.9,0.72352]
[1736055977386,4.21932268,3637.0,3636.9,0.72352]
[1736055978683,0.98899128,3637.0,3636.9,0.72352]
[1736055981391,1.43019128,3637.0,3636.9,0.72352]
[1736055983090,1.43019128,3637.0,3636.9,0.4485]
[1736055983292,1.43019128,3637.0,3636.9,0.72352]
[1736055991392,1.43019128,3637.0,3636.9,0.4485]
[1736055995899,1.43019128,3637.0,3636.6,3.2078]
[1736055996200,0.98899128,3636.7,3636.6,3.2078]
[1736055996698,0.98899128,3636.7,3636.6,3.48285]
[1736055999405,0.98899128,3636.7,3636.6,0.27505]
[1736056000405,0.98899128,3636.7,3636.5,1.14015]
[1736056000603,0.4056,3636.6,3636.5,1.14015]
[1736056000803,1.4626,3636.6,3636.5,1.14015]
[1736056009715,1.4626,3636.6,3636.5,0.8651]
[1736056009917,1.73765,3636.6,3636.5,0.8651]
[1736056010123,1.4626,3636.6,3636.5,0.8651]
[1736056011722,1.8753129,3636.6,3636.5,0.8651]
[1736056013218,1.8753129,3636.6,3636.5,1.14015]
[1736056014621,1.8753129,3636.6,3636.5,0.8651]
[1736056014819,5.10659177,3636.6,3636.5,0.8651]
[1736056016021,1.8753129,3636.6,3636.5,0.8651]
[1736056016827,2.1503629,3636.6,3636.5,0.8651]
[1736056017424,1.73765,3636.6,3636.5,0.8651]
[1736056017625,1.4626,3636.6,3636.5,0.8651]
[1736056018620,1.8753129,3636.6,3636.5,0.8651]
[1736056021419,2.1503629,3636.6,3636.5,0.8651]
[1736056021827,2.1503629,3636.6,3636.5,0.437]
[1736056023322,1.8753129,3636.6,3636.5,0.437]
[1736056024622,5.10778312,3636.6,3636.5,0.437]
[1736056025928,5.38283312,3636.6,3636.5,0.437]
[1736056026326,5.10778312,3636.6,3636.5,0.437]
[1736056026730,5.38283312,3636.6,3636.5,0.437]
[1736056028432,5.10778312,3636.6,3636.5,0.437]
[1736056028631,5.38283312,3636.6,3636.5,0.437]
[1736056033834,2.1503629,3636.6,3636.5,0.437]
[1736056035130,1.73765,3636.6,3636.5,0.437]
[1736056036536,2.1503629,3636.6,3636.5,0.437]
[1736056037532,0.27506,3636.4,3636.3,7.52990652]
[1736056037740,1.26405128,3636.4,3636.3,3.2078]
[1736056039038,1.67676418,3636.4,3636.3,3.2078]
[1736056039842,1.67676418,3636.4,3636.1,4.32210652]
[1736056039843,0.27508,3636.2,3636.1,4.32210652]
[1736056040139,1.26407128,3636.2,3636.1,4.32210652]
[1736056040634,0.98899128,3636.2,3636.1,4.32210652]
[1736056042534,0.98899128,3636.2,3636.1,3.89153974]
[1736056049038,4.22286587,3636.2,3636.1,3.89153974]
[1736056050638,4.65006587,3636.2,3636.1,3.89153974]
[1736056052143,4.65006587,3636.2,3636.1,4.16661974]
[1736056053245,4.65006587,3636.2,3636.1,10.65661594]
[1736056054747,4.65006587,3636.2,3636.1,10.38153594]
[1736056054937,4.65006587,3636.2,3636.1,10.65661594]
[1736056056341,5.06280021,3636.2,3636.1,10.65661594]
[1736056061147,4.65006587,3636.2,3636.1,10.65661594]
[1736056068561,5.06279654,3636.2,3636.1,10.65661594]
[1736056071457,3.23387459,3636.2,3636.1,10.65661594]
[1736056072859,2.1583331,3636.3,3636.2,0.27508]
[1736056073959,2.1583331,3636.4,3636.2,12.55091777]
[1736056074261,2.1583331,3636.4,3636.3,0.27507]
[1736056074462,2.1583331,3636.4,3636.3,0.68817]
[1736056075559,2.1583331,3636.4,3636.3,4.57970974]
[1736056076258,6.63018438,3636.4,3636.3,3.89153974]
[1736056076563,7.50818438,3636.4,3636.3,3.89153974]
[1736056078054,0.27509,3636.0,3635.9,0.4099]
[1736056078261,2.31908128,3636.0,3635.9,0.4099]
[1736056079660,2.73185825,3636.0,3635.9,0.4099]
[1736056082469,2.73185825,3636.0,3635.7,4.33020387]
[1736056082470,0.27511,3635.8,3635.7,4.33020387]
[1736056082767,1.26410128,3635.8,3635.7,4.33020387]
[1736056083968,4.63598103,3635.8,3635.6,4.33020387]
[1736056084168,1.14771,3635.7,3635.6,4.33020387]
[1736056085360,1.14771,3635.7,3635.5,4.33020387]
[1736056085762,0.8726,3635.7,3635.5,4.33020387]
[1736056086366,3.02797984,3635.7,3635.5,4.33020387]
[1736056086964,3.30308984,3635.7,3635.5,4.33020387]
[1736056087567,3.30308984,3635.7,3635.4,4.76970387]
[1736056088775,0.98899128,3635.5,3635.4,4.76970387]
[1736056089676,4.01697112,3635.7,3635.4,4.76970387]
[1736056089868,4.01697112,3635.7,3635.4,5.04484387]
[1736056091475,1.86159128,3635.7,3635.4,5.04484387]
[1736056092872,1.86159128,3635.7,3635.5,4.33020387]
[1736056094377,2.15537984,3635.9,3635.5,4.33020387]
[1736056094574,2.15537984,3635.9,3635.6,0.98899128]
[1736056094770,2.15537984,3635.9,3635.8,0.27511]
[1736056095487,5.36317984,3636.1,3636.0,0.27509]
[1736056095884,5.36317984,3636.1,3635.9,0.6842]
[1736056096088,5.36317984,3636.1,3636.0,0.27509]
[1736056096485,5.36317984,3636.1,3635.9,0.6842]
[1736056096984,0.98899128,3636.0,3635.9,0.6842]
[1736056097884,1.40159128,3636.0,3635.9,0.6842]
[1736056098287,1.67669128,3636.0,3635.8,4.76330387]
[1736056098480,0.2751,3635.9,3635.8,4.76330387]
[1736056098683,0.2751,3635.9,3635.8,4.33020387]
[1736056099788,0.2751,3635.9,3635.6,6.49530581]
[1736056099789,0.2751,3635.9,3635.6,10.82550968]
[1736056100092,0.2751,3635.9,3635.6,4.33020387]
[1736056100292,0.98899128,3635.7,3635.6,4.33020387]
[1736056101184,0.98899128,3635.7,3635.5,11.94713968]
[1736056101390,3.14437112,3635.9,3635.6,0.27511]
[1736056101586,3.14437112,3635.9,3635.7,0.27511]
[1736056101785,4.20037112,3635.9,3635.7,0.27511]
[1736056102085,4.20037112,3635.9,3635.8,0.4308]
[1736056102885,4.47547112,3635.9,3635.8,0.4308]
[1736056103195,2.32009128,3635.9,3635.8,0.4308]
[1736056103593,2.04499128,3635.9,3635.8,0.4308]
[1736056104694,4.20037112,3635.9,3635.8,0.4308]
[1736056105787,2.04499128,3635.9,3635.8,0.4308]
[1736056106787,2.32009128,3635.9,3635.8,0.4308]
[1736056110692,4.47547112,3635.9,3635.8,0.4308]